bitfinex-derivatives/quotes_ETHF0:USTF0_20250629
["timestamp","ask_amount","ask_price","bid_price","bid_amount"]
[1751217986997,0.65633,2437.1,2436.8,28.41287628]
[1751217987198,0.65634,2437.0,2436.8,28.41287628]
[1751217988293,0.65633,2437.1,2436.9,0.65637]
[1751217988492,0.65633,2437.1,2437.0,24.721]
[1751217991598,1.38983,2437.1,2437.0,24.721]
[1751217997100,0.65633,2437.1,2437.0,24.721]
[1751217997906,0.7337,2437.3,2437.2,0.65629]
[1751217998203,3.84353669,2437.6,2437.4,0.65622]
[1751217998505,3.18735669,2437.6,2437.4,25.38122]
[1751217998701,0.7277,2437.6,2437.5,0.65621]
[1751217999505,1.38388,2437.6,2437.4,29.61495571]
[1751217999996,1.38388,2437.6,2437.4,27.50312]
[1751218002504,0.65621,2437.5,2437.4,26.8469]
[1751218003813,0.65621,2437.5,2437.4,24.725]
[1751218005701,3.67173241,2437.5,2437.4,24.725]
[1751218005901,4.33643241,2437.5,2437.4,24.725]
[1751218006201,0.65631,2437.2,2437.0,3.2078]
[1751218006400,3.01552241,2437.3,2437.0,3.2078]
[1751218006704,3.01552241,2437.3,2437.0,27.9438]
[1751218006903,0.65631,2437.1,2437.0,27.9438]
[1751218008708,0.65631,2437.1,2437.0,3.2078]
[1751218008908,0.65631,2437.1,2437.0,27.9438]
[1751218009303,0.65631,2437.1,2437.0,3.2078]
[1751218009506,3.67183241,2437.1,2437.0,3.2078]
[1751218011301,0.65634,2437.0,2436.9,32.65559628]
[1751218012007,0.65634,2437.0,2436.9,1.63659628]
[1751218012208,0.65634,2437.0,2436.9,26.37159628]
[1751218013408,0.65634,2437.0,2436.9,1.63659628]
[1751218013606,0.65634,2437.0,2436.9,26.37259628]
[1751218014708,0.65634,2437.0,2436.9,24.736]
[1751218016308,0.65634,2437.0,2436.8,1.63659628]
[1751218016608,0.6869,2436.9,2436.8,26.36959628]
[1751218017317,1.62983308,2436.9,2436.8,24.733]
[1751218017609,1.62983308,2436.9,2436.8,25.3894]
[1751218021016,2.28620308,2436.9,2436.8,25.3894]
[1751218023813,1.62983308,2436.9,2436.8,25.3894]
[1751218025014,2.28620308,2436.9,2436.8,25.3894]
[1751218025614,1.62983308,2436.9,2436.8,25.3894]
[1751218027815,1.33633,2437.1,2437.0,0.65634]
[1751218028004,2.3120268,2437.1,2436.9,0.65635]
[1751218028208,0.9429968,2437.0,2436.9,2.1011]
[1751218028608,0.9429968,2437.0,2436.9,2.75747]
[1751218028811,0.9429968,2437.0,2436.9,3.48457]
[1751218032018,1.5993368,2437.0,2436.9,3.48457]
[1751218035023,0.9429968,2437.0,2436.9,3.48457]
[1751218035223,0.9429968,2437.0,2436.9,6.69237]
[1751218036825,0.6563,2437.2,2437.0,0.65632]
[1751218037018,0.6563,2437.2,2437.1,24.74]
[1751218037513,1.59977878,2437.2,2437.1,24.74]
[1751218037718,2.31437878,2437.2,2437.1,24.74]
[1751218039124,1.65807878,2437.2,2437.1,24.74]
[1751218039625,2.31436878,2437.2,2437.1,24.74]
[1751218039923,1.65807878,2437.2,2437.1,24.74]
[1751218041329,2.31436878,2437.2,2437.1,24.74]
[1751218042923,2.31436878,2437.2,2436.9,9.14873973]
[1751218043120,0.94347878,2437.1,2437.0,24.734]
[1751218043529,0.94347878,2437.1,2437.0,25.39034]
[1751218044928,0.94347878,2437.1,2437.0,24.734]
[1751218046429,1.59978878,2437.1,2437.0,24.734]
[1751218046732,0.94347878,2437.1,2437.0,24.734]
[1751218047125,0.94347878,2437.1,2437.0,25.39034]
[1751218047322,0.94347878,2437.1,2437.0,24.734]
[1751218047522,1.59978878,2437.1,2437.0,24.734]
[1751218048033,0.94347878,2437.1,2437.0,24.734]
[1751218048327,0.94347878,2437.1,2437.0,26.73724]
[1751218052735,1.59978878,2437.1,2437.0,26.73724]
[1751218055237,1.59978878,2437.1,2437.0,26.0809]
[1751218057143,0.94347878,2437.1,2437.0,26.73724]
[1751218059348,1.59978878,2437.1,2437.0,26.0809]
[1751218059548,1.59978878,2437.1,2437.0,24.734]
[1751218060846,3.71158097,2437.1,2437.0,24.734]
[1751218063748,3.71158097,2437.1,2437.0,24.717]
[1751218064049,4.38168097,2437.1,2437.0,24.717]
[1751218065647,2.26988878,2437.1,2437.0,24.717]
[1751218065846,4.38168097,2437.1,2437.0,24.717]
[1751218067058,0.65637,2436.9,2436.8,2.45638973]
[1751218067256,0.65637,2436.9,2436.8,27.17138973]
[1751218067456,1.59984878,2436.9,2436.8,27.17138973]
[1751218069959,0.94347878,2436.9,2436.8,27.17138973]
[1751218070265,0.94347878,2436.9,2436.8,27.82778973]
[1751218070453,1.66147878,2436.9,2436.8,27.82778973]
[1751218070858,1.66147878,2436.9,2436.8,27.17138973]
[1751218072468,2.31784878,2436.9,2436.8,27.17138973]
[1751218075769,2.31784878,2436.9,2436.8,29.28318192]
[1751218081870,2.31784878,2436.9,2436.8,29.93958192]
[1751218090369,2.31784878,2436.9,2436.8,29.28318192]
[1751218092374,2.31784878,2436.9,2436.8,29.93957192]
[1751218092766,2.31784878,2436.9,2436.8,5.22457192]
[1751218092967,2.31784878,2436.9,2436.8,29.93657192]
[1751218094676,2.31784878,2436.9,2436.8,29.28018192]
[1751218096174,2.31784878,2436.9,2436.8,27.16838973]
[1751218099076,1.66147878,2436.9,2436.8,27.82478973]
[1751218100276,2.31784878,2436.9,2436.8,27.82478973]
[1751218101572,2.31784878,2436.9,2436.8,27.16838973]
[1751218102876,2.31784878,2436.9,2436.8,27.82478973]
[1751218104077,2.31784878,2436.9,2436.8,27.16838973]
[1751218104680,2.31784878,2436.9,2436.8,2.45638973]
[1751218104980,0.6564,2436.8,2436.7,8.74238973]
[1751218105177,3.71167097,2436.8,2436.7,33.45338973]
[1751218105377,3.71167097,2436.8,2436.7,30.997]
[1751218105573,0.65642,2436.7,2436.6,5.66418973]
[1751218105778,1.59989878,2436.7,2436.6,30.37518973]
[1751218107183,1.59989878,2436.7,2436.6,27.9188]
[1751218107677,1.59989878,2436.7,2436.6,24.711]
[1751218108184,0.65642,2436.7,2436.6,24.711]
[1751218108482,0.65642,2436.7,2436.5,6.32065973]
[1751218108685,0.65642,2436.7,2436.6,24.712]
[1751218108885,1.60035383,2436.7,2436.6,24.712]
[1751218110184,0.65642,2436.7,2436.6,24.712]
[1751218111591,2.76820219,2436.8,2436.6,25.36844]
[1751218112084,0.718,2436.9,2436.7,0.65642]
[1751218112085,3.48616219,2436.9,2436.7,0.65642]
[1751218112285,0.94390477,2436.8,2436.7,0.65642]
[1751218113588,1.60029477,2436.8,2436.7,0.65642]
[1751218114290,0.94390477,2436.8,2436.7,0.65642]
[1751218115389,0.65642,2436.7,2436.6,29.62602219]
[1751218115591,0.6564,2436.8,2436.6,28.96959219]
[1751218115892,0.6564,2436.8,2436.6,29.62602219]
[1751218117089,0.6564,2436.8,2436.7,0.65642]
[1751218117288,1.60026582,2436.8,2436.7,0.65642]
[1751218118891,0.65642,2436.7,2436.6,29.62602219]
[1751218119686,0.65642,2436.7,2436.6,28.96959219]
[1751218119994,0.65642,2436.7,2436.6,4.25759219]
[1751218120182,0.65642,2436.7,2436.6,28.25089219]
[1751218120387,0.65642,2436.7,2436.6,28.90734219]
[1751218122491,0.65641,2436.8,2436.6,28.90734219]
[1751218122888,0.65641,2436.8,2436.7,0.65642]
[1751218123089,1.60029016,2436.8,2436.7,0.65642]
[1751218124489,1.60029016,2436.8,2436.6,28.90732219]
[1751218124689,0.65641,2436.8,2436.6,28.90732219]
[1751218124891,0.65641,2436.8,2436.7,0.65642]
[1751218125089,1.60033452,2436.8,2436.7,0.65642]
[1751218125490,1.60033452,2436.8,2436.6,28.90732219]
[1751218125796,0.65641,2436.8,2436.6,28.90732219]
[1751218125984,0.65641,2436.8,2436.6,28.25089219]
[1751218126186,0.65641,2436.8,2436.6,28.90732219]
[1751218127501,0.65642,2436.7,2436.6,28.90732219]
[1751218128903,0.65642,2436.7,2436.6,28.25089219]
[1751218129294,0.65642,2436.7,2436.6,28.90734219]
[1751218130600,0.65642,2436.7,2436.6,28.25089219]
[1751218130898,0.65645,2436.6,2436.5,2.45638973]
[1751218131090,1.33915,2436.6,2436.5,27.16738973]
[1751218132495,1.33915,2436.6,2436.5,27.82386973]
[1751218133393,0.6827,2436.6,2436.5,27.16738973]
[1751218133601,0.6827,2436.6,2436.5,27.82386973]
[1751218133795,1.33915,2436.6,2436.5,27.82386973]
[1751218134199,0.6827,2436.6,2436.5,27.82386973]
[1751218134896,0.6827,2436.6,2436.5,29.26296973]
[1751218135297,0.6827,2436.6,2436.5,26.80658]
[1751218135797,1.33915,2436.6,2436.5,26.80658]
[1751218136297,0.6827,2436.6,2436.5,26.80658]
[1751218136592,0.6827,2436.6,2436.4,1.3583]
[1751218136800,1.33917,2436.6,2436.5,27.16776927]
[1751218137291,1.33917,2436.6,2436.5,2.45676927]
[1751218137488,1.33917,2436.6,2436.5,27.16776927]
[1751218137690,0.6827,2436.6,2436.5,27.82424927]
[1751218137890,0.65642,2436.8,2436.6,0.65643]
[1751218138188,0.94527592,2436.7,2436.6,6.63464463]
[1751218139500,0.94527592,2436.7,2436.6,9.84244463]
[1751218140094,0.94527592,2436.7,2436.6,11.95423682]
[1751218140297,0.94527592,2436.7,2436.6,16.12344463]
[1751218141395,0.65636,2437.0,2436.8,0.65637]
[1751218141598,0.65636,2437.0,2436.9,28.25989219]
[1751218141801,1.60134581,2437.0,2436.9,28.25989219]
[1751218146102,0.6564,2436.8,2436.7,2.45536577]
[1751218146304,0.65642,2436.7,2436.6,2.45536577]
[1751218146495,1.31842,2436.7,2436.6,27.16536577]
[1751218146802,1.31842,2436.7,2436.6,2.45536577]
[1751218147003,0.65645,2436.6,2436.5,2.45536577]
[1751218147210,2.76824219,2436.6,2436.5,27.16536577]
[1751218147797,0.65645,2436.6,2436.5,27.16536577]
[1751218148399,1.60114947,2436.6,2436.5,24.71]
[1751218148901,0.6565,2436.4,2436.3,11.94416577]
[1751218149104,0.6565,2436.4,2436.3,36.65516577]
[1751218149405,0.6565,2436.4,2436.3,3.2078]
[1751218149602,0.6565,2436.4,2436.3,27.9178]
[1751218150907,0.6565,2436.4,2436.3,30.37316577]
[1751218151509,0.6565,2436.4,2436.3,5.66316577]
[1751218151701,0.6565,2436.4,2436.3,30.37316577]
[1751218152407,8.23458778,2436.7,2436.3,30.37316577]
[1751218152609,0.65648,2436.5,2436.3,30.37316577]
[1751218152910,0.65648,2436.5,2436.3,31.02969577]
[1751218153211,0.65648,2436.5,2436.3,32.40079577]
[1751218153611,0.65648,2436.5,2436.3,31.74426577]
[1751218153811,0.65648,2436.5,2436.3,28.53646577]
[1751218155214,0.65648,2436.5,2436.3,29.19299577]
[1751218155608,0.65647,2436.6,2436.4,3.67498778]
[1751218155814,0.65647,2436.6,2436.4,11.41805355]
[1751218156913,0.65648,2436.5,2436.4,10.76155355]
[1751218157415,0.65648,2436.5,2436.4,11.41805355]
[1751218157617,0.65646,2436.6,2436.4,11.41805355]
[1751218158813,0.65646,2436.6,2436.4,8.96268778]
[1751218160822,0.65646,2436.6,2436.5,24.711]
[1751218161022,0.65646,2436.6,2436.5,26.172]
[1751218161222,1.60056334,2436.6,2436.5,27.55948]
[1751218161724,1.60056334,2436.6,2436.5,26.903]
[1751218161924,1.60056334,2436.6,2436.5,29.92148778]
[1751218162324,1.60056334,2436.6,2436.5,30.57796778]
[1751218164424,0.94410334,2436.6,2436.5,30.57796778]
[1751218166630,0.6564,2436.8,2436.6,0.65643]
[1751218166829,0.6564,2436.8,2436.7,29.82030778]
[1751218167032,1.59987883,2436.8,2436.7,29.82030778]
[1751218167527,0.94347883,2436.8,2436.7,29.82030778]
[1751218168936,0.94347883,2436.8,2436.7,39.30810778]
[1751218176139,0.65635,2437.0,2436.7,39.30810778]
[1751218176330,0.94372447,2436.9,2436.8,2.1203]
[1751218176635,1.60009447,2436.9,2436.8,2.7947]
[1751218176837,1.60009447,2436.9,2436.8,3.4511]
[1751218177239,0.94372447,2436.9,2436.8,3.4511]
[1751218177440,0.6693,2437.1,2436.8,3.4511]
[1751218177637,1.59989873,2437.0,2436.9,24.708]
[1751218178337,1.59989873,2437.0,2436.9,27.9158]
[1751218178741,1.59989873,2437.0,2436.9,24.708]
[1751218178935,1.59989873,2437.0,2436.9,27.9158]
[1751218183645,1.59989873,2437.0,2436.9,24.708]
[1751218183844,1.59989873,2437.0,2436.9,27.9158]
[1751218190550,1.59989873,2437.0,2436.9,30.93428778]
[1751218191752,1.59989873,2437.0,2436.9,30.02753249]
[1751218200352,1.59989873,2437.0,2436.9,27.9158]
[1751218200553,1.59989873,2437.0,2436.9,30.02753249]
[1751218204548,1.59989873,2437.0,2436.9,27.9118]
[1751218204748,3.04199873,2437.0,2436.9,27.9118]
[1751218207659,3.04199873,2437.0,2436.9,3.2078]
[1751218207853,3.04199873,2437.0,2436.9,27.9118]
[1751218208059,3.04199873,2437.0,2436.9,3.2078]
[1751218208852,5.15373122,2437.0,2436.9,3.2078]
[1751218212661,0.65642,2436.7,2436.6,27.9118]
[1751218212850,0.65642,2436.7,2436.6,3.2078]
[1751218213054,1.59997873,2436.7,2436.6,3.2078]
[1751218213256,3.60007873,2436.7,2436.6,3.2078]
[1751218217060,4.58476873,2436.7,2436.4,24.705]
[1751218217261,5.34578281,2436.6,2436.3,36.64516577]
[1751218217468,0.6565,2436.4,2436.3,34.1898]
[1751218217964,1.3879,2436.4,2436.3,34.1898]
[1751218220363,4.40632408,2436.4,2436.3,3.2078]
[1751218221165,5.85742408,2436.4,2436.3,3.2078]
[1751218221365,6.80188661,2436.4,2436.3,3.2078]
[1751218222267,5.85742408,2436.4,2436.3,3.2078]
[1751218222661,4.40632408,2436.4,2436.3,3.2078]
[1751218225278,0.65656,2436.2,2436.1,27.9148]
[1751218225771,0.65656,2436.2,2436.1,30.93322408]
[1751218226378,0.65656,2436.2,2436.1,32.95942408]
[1751218226680,0.65656,2436.2,2436.1,33.61600408]
[1751218229083,0.65656,2436.2,2436.1,33.61700408]
[1751218229582,0.65654,2436.3,2436.1,33.61700408]
[1751218229785,0.65654,2436.3,2436.2,1.4339]
[1751218229982,0.6868,2436.6,2436.2,1.4339]
[1751218230285,0.6565,2436.4,2436.3,28.43732408]
[1751218230486,0.6565,2436.4,2436.3,29.87122408]
[1751218238392,0.6565,2436.4,2436.3,26.8528]
[1751218241095,0.6565,2436.4,2436.3,2.1438]
[1751218241300,1.59978988,2436.4,2436.3,26.8528]
[1751218266708,0.94328988,2436.4,2436.3,26.8528]
[1751218267014,0.6565,2436.4,2436.3,29.30816577]
[1751218267212,1.59978988,2436.4,2436.3,29.30816577]
[1751218267805,1.59978988,2436.4,2436.3,29.96469577]
[1751218269014,1.59978988,2436.4,2436.3,29.30816577]
[1751218270604,0.6565,2436.4,2436.3,29.30816577]
[1751218273817,1.60041487,2436.4,2436.3,26.8528]
[1751218274716,1.60041487,2436.4,2436.3,25.4169]
[1751218277115,1.60041487,2436.4,2436.3,24.707]
[1751218280127,0.65653,2436.3,2436.2,7.77611097]
[1751218280326,1.32493,2436.3,2436.2,32.48211097]
[1751218280923,1.32493,2436.3,2436.2,33.92181097]
[1751218281122,2.26893582,2436.3,2436.2,33.92181097]
[1751218282426,2.26893582,2436.3,2436.2,40.85537097]
[1751218283729,2.26893582,2436.3,2436.2,37.64757097]
[1751218285732,2.26893582,2436.3,2436.2,36.99101097]
[1751218286232,2.26893582,2436.3,2436.2,37.64757097]
[1751218287533,2.26893582,2436.3,2436.2,36.99101097]
[1751218289634,1.32493,2436.3,2436.2,37.64757097]
[1751218291337,0.6684,2436.3,2436.2,37.64757097]
[1751218292939,0.6684,2436.3,2436.2,40.85537097]
[1751218293139,1.32493,2436.3,2436.2,40.85537097]
[1751218293439,0.6684,2436.3,2436.2,40.85537097]
[1751218293646,1.32493,2436.3,2436.2,40.85537097]
[1751218295442,1.32493,2436.3,2436.2,40.19881097]
[1751218300532,1.32493,2436.3,2436.2,40.85537097]
[1751218300732,1.32493,2436.3,2436.2,40.19881097]
[1751218300940,1.32493,2436.3,2436.2,36.99101097]
[1751218301243,1.32493,2436.3,2436.2,40.19881097]
[1751218304038,1.32493,2436.3,2436.2,40.85537097]
[1751218304939,1.32493,2436.3,2436.2,40.19881097]
[1751218308137,0.6684,2436.3,2436.2,40.85537097]
[1751218310552,1.32493,2436.3,2436.2,40.85537097]
[1751218312056,1.32493,2436.3,2436.2,40.19881097]
[1751218312355,1.32493,2436.3,2436.2,40.85537097]
[1751218312556,0.6684,2436.3,2436.2,40.85537097]
[1751218315260,0.6684,2436.3,2436.2,9.87237097]
[1751218315453,0.6684,2436.3,2436.2,40.85037097]
[1751218316748,0.6684,2436.3,2436.2,37.64257097]
[1751218316951,0.6684,2436.3,2436.2,40.85037097]
[1751218319853,0.6684,2436.3,2436.2,38.3950052]
[1751218324868,0.6684,2436.3,2436.2,35.1872052]
[1751218325069,0.6684,2436.3,2436.2,38.3950052]
[1751218326171,0.6684,2436.3,2436.2,36.9553052]
[1751218327474,0.65644,2436.7,2436.5,0.65645]
[1751218327770,0.6677,2436.6,2436.5,4.40687148]
[1751218327973,0.6677,2436.6,2436.5,29.10787148]
[1751218328174,0.6677,2436.6,2436.5,32.31567148]
[1751218333178,1.32415,2436.6,2436.5,30.6781952]
[1751218333778,0.6677,2436.6,2436.5,30.6781952]
[1751218335179,0.6925,2436.8,2436.7,0.65642]
[1751218335476,0.6974,2436.8,2436.7,27.4683652]
[1751218335676,0.6974,2437.1,2437.0,0.65634]
[1751218335878,0.6974,2437.1,2437.0,26.8119452]
[1751218336079,0.6974,2437.1,2437.0,27.4682852]
[1751218336778,1.35371,2437.1,2437.0,26.8119452]
[1751218341284,0.6974,2437.1,2437.0,27.4682852]
[1751218341784,1.35371,2437.1,2437.0,24.699]
[1751218344984,1.35371,2437.1,2437.0,25.35534]
[1751218345783,1.35371,2437.1,2437.0,24.699]
[1751218350489,1.35371,2437.1,2437.0,25.35534]
[1751218350689,1.35371,2437.1,2437.0,24.699]
[1751218355190,0.65634,2437.0,2436.9,3.2078]
[1751218355389,2.7692852,2437.0,2436.9,27.9008]
[1751218356691,2.7692852,2437.0,2436.9,24.693]
[1751218357994,0.6564,2436.8,2436.7,7.90685422]
[1751218358199,0.6564,2436.8,2436.7,32.59985422]
[1751218361390,0.6564,2436.8,2436.7,30.965]
[1751218365295,1.59978261,2436.8,2436.7,30.965]
[1751218366603,1.59978261,2436.8,2436.6,5.22167653]
[1751218366897,1.35373,2437.1,2436.9,0.65636]
[1751218367101,1.35371,2437.1,2437.0,26.8049452]
[1751218367301,2.29701923,2437.1,2437.0,26.8049452]
[1751218367504,2.29701923,2437.1,2437.0,27.4612852]
[1751218371705,2.29701923,2437.1,2437.0,26.8049452]
[1751218372308,1.35371,2437.1,2437.0,26.8049452]
[1751218374101,1.35371,2437.1,2437.0,27.4612852]
[1751218375406,0.6974,2437.1,2437.0,27.4612852]
[1751218376308,0.65631,2437.2,2437.0,27.4612852]
[1751218376508,0.65631,2437.2,2437.0,29.5529852]
[1751218377408,0.65631,2437.1,2437.0,29.5529852]
[1751218377609,0.65631,2437.1,2437.0,28.8966452]
[1751218378009,0.65631,2437.1,2437.0,28.1636452]
[1751218379705,0.65631,2437.1,2437.0,26.0507]
[1751218382221,2.7692552,2437.2,2437.0,26.70704]
[1751218382820,0.65631,2437.1,2437.0,26.70704]
[1751218383320,2.7692552,2437.2,2437.0,26.70704]
[1751218383518,0.65631,2437.1,2437.0,26.70704]
[1751218385920,0.65631,2437.1,2437.0,26.0507]
[1751218387621,0.65631,2437.1,2437.0,26.70704]
[1751218389323,0.65631,2437.1,2437.0,26.0507]
[1751218389515,0.65631,2437.1,2437.0,24.692]
[1751218390720,0.65631,2437.2,2437.0,24.692]
[1751218391023,0.65631,2437.2,2437.1,2.1129452]
[1751218394024,0.65631,2437.2,2437.1,26.8029452]
[1751218396520,5.0,2437.2,2436.9,4.83969583]
[1751218396721,0.65634,2437.0,2436.9,29.52869583]
[1751218397228,1.36344,2437.0,2436.9,29.52869583]
[1751218402928,1.36344,2437.0,2436.9,32.29801103]
[1751218402929,0.7071,2437.0,2436.9,32.29801103]
[1751218403619,0.65631,2437.2,2437.0,0.65633]
[1751218403822,0.65631,2437.2,2437.1,24.689]
[1751218404434,0.65631,2437.2,2437.1,26.8019452]
[1751218405124,0.65631,2437.2,2437.1,27.4582652]
[1751218405630,0.65631,2437.2,2437.1,26.8019452]
[1751218406231,0.65631,2437.2,2437.1,27.4582552]
[1751218406438,2.8088452,2437.4,2437.2,0.65629]
[1751218406439,0.65624,2437.4,2437.2,0.65629]
[1751218406729,4.57232,2437.5,2437.3,27.4582052]
[1751218406943,1.36452,2437.5,2437.3,27.4582052]
[1751218407231,1.36452,2437.5,2437.3,28.9001052]
[1751218407732,1.36452,2437.5,2437.3,29.80281126]
[1751218407927,0.7083,2437.5,2437.4,0.65623]
[1751218408129,2.45965669,2437.7,2437.6,0.65618]
[1751218408429,2.45965669,2438.0,2437.9,0.6561]
[1751218408633,2.45965669,2438.0,2437.9,34.64075126]
[1751218409140,2.45965669,2438.1,2438.0,0.65607]
[1751218409329,2.45965669,2438.1,2438.0,2.04557]
[1751218409532,2.45965669,2438.1,2438.0,1.3895]
[1751218410136,3.11569669,2438.2,2438.0,1.3895]
[1751218410337,3.11569669,2438.2,2438.1,24.702]
[1751218411339,0.65604,2438.2,2438.1,24.702]
[1751218411536,1.3862,2438.4,2438.1,28.37368126]
[1751218411732,2.04219,2438.4,2438.1,28.37368126]
[1751218411933,0.65599,2438.3,2438.2,1.3895]
[1751218416338,0.65599,2438.3,2438.2,2.7591]
[1751218417944,0.65599,2438.3,2438.2,9.0251]
[1751218422439,0.65599,2438.3,2438.2,8.36]
[1751218425339,3.888,2438.7,2438.2,9.98615126]
[1751218425539,0.65595,2438.5,2438.3,26.014]
[1751218425740,0.65595,2438.5,2438.4,1.326]
[1751218426235,0.65595,2438.5,2438.4,4.34165126]
[1751218427146,0.65595,2438.5,2438.4,4.99761126]
[1751218427648,0.65595,2438.5,2438.4,4.34165126]
[1751218427946,0.65595,2438.5,2438.4,7.54945126]
[1751218429040,0.6802,2438.7,2438.6,0.65591]
[1751218429350,0.6802,2438.7,2438.6,28.36156126]
[1751218429640,0.6802,2438.7,2438.6,27.70565126]
[1751218429850,0.6802,2438.7,2438.6,29.14775126]
[1751218430045,1.33608,2438.7,2438.6,29.14775126]
[1751218430443,1.33608,2438.7,2438.6,24.69]
[1751218430639,1.33608,2438.7,2438.6,25.34591]
[1751218431046,0.65591,2438.6,2438.5,0.7241]
[1751218431246,1.33609,2438.7,2438.5,31.61592]
[1751218431547,1.33609,2438.7,2438.6,0.65591]
[1751218431850,1.33609,2438.7,2438.5,31.61592]
[1751218432643,1.33609,2438.7,2438.6,0.65591]
[1751218433351,1.33609,2438.7,2438.5,31.61593]
[1751218434344,0.65591,2438.6,2438.5,31.61593]
[1751218434745,1.3361,2438.7,2438.5,31.61593]
[1751218435146,0.65591,2438.6,2438.5,31.61593]
[1751218435351,1.3361,2438.7,2438.5,31.61593]
[1751218435554,0.6802,2438.7,2438.5,31.61593]
[1751218436451,0.6802,2438.7,2438.4,3.2078]
[1751218436452,0.65594,2438.5,2438.4,3.2078]
[1751218436662,0.65594,2438.5,2438.4,34.1628]
[1751218436849,3.69585126,2438.7,2438.4,34.81876]
[1751218436850,0.65593,2438.6,2438.4,34.81876]
[1751218438156,0.65594,2438.5,2438.4,34.1628]
[1751218438955,0.65594,2438.5,2438.4,3.2078]
[1751218439148,0.65594,2438.5,2438.4,27.8878]
[1751218439344,0.65594,2438.5,2438.4,27.8898]
[1751218439555,1.31784,2438.5,2438.4,27.8898]
[1751218440355,4.33349126,2438.5,2438.4,27.8898]
[1751218441157,4.33349126,2438.5,2438.4,3.2078]
[1751218444259,1.31784,2438.5,2438.4,3.2078]
[1751218448256,6.31784,2438.5,2438.3,1.63189583]
[1751218448560,0.65602,2438.2,2438.1,1.63189583]
[1751218448962,0.65605,2438.1,2438.0,1.63189583]
[1751218449158,5.10440126,2438.1,2438.0,1.63189583]
[1751218449359,10.10440126,2438.1,2438.0,1.63189583]
[1751218451457,0.65621,2437.5,2437.4,3.27518631]
[1751218452253,0.65623,2437.4,2437.3,9.54718631]
[1751218452457,0.65623,2437.4,2437.3,3.27518631]
[1751218452654,0.65626,2437.3,2437.2,27.9088]
[1751218454865,0.65626,2437.3,2437.2,3.2078]
[1751218455054,0.65626,2437.3,2437.2,6.47199063]
[1751218456054,0.65626,2437.3,2437.2,3.2078]
[1751218461061,0.6708,2437.5,2437.2,3.2078]
[1751218461376,0.65626,2437.3,2437.2,3.2078]
[1751218464371,0.65626,2437.3,2437.0,28.37798126]
[1751218464774,0.65626,2437.3,2437.0,31.58578126]
[1751218465172,0.65629,2437.2,2437.0,31.58578126]
[1751218465670,0.65631,2437.1,2437.0,30.92945126]
[1751218466171,0.65631,2437.2,2437.0,30.92945126]
[1751218467273,0.65631,2437.2,2437.0,31.58579126]
[1751218468475,0.65628,2437.3,2437.1,0.65631]
[1751218469074,0.65628,2437.3,2437.2,0.7232]
[1751218470066,3.2078,2437.6,2437.2,0.7232]
[1751218470268,3.2078,2437.6,2437.3,0.7002]
[1751218470469,0.65623,2437.4,2437.3,0.7002]
[1751218480684,0.65623,2437.4,2437.3,2.1007]
[1751218481078,1.61184137,2437.4,2437.3,2.1007]
[1751218490986,1.61184137,2437.4,2437.3,0.7002]
[1751218492189,1.61184137,2437.4,2437.3,2.0357]
[1751218495094,1.61184137,2437.4,2437.3,0.7002]
[1751218495991,1.61184137,2437.4,2437.3,3.908]
[1751218498989,0.95561137,2437.4,2437.3,4.56426]
[1751218499189,1.35516,2437.7,2437.5,0.65621]
[1751218499390,0.95841432,2437.6,2437.5,0.65621]
[1751218499589,0.95841432,2437.6,2437.5,2.05231]
[1751218500093,1.61459432,2437.6,2437.5,1.3961]
[1751218500289,0.65621,2437.5,2437.4,0.65623]
[1751218500594,1.61462432,2437.5,2437.4,0.65623]
[1751218501297,1.61462432,2437.5,2437.3,7.00426754]
[1751218501489,0.65621,2437.5,2437.3,6.02905]
[1751218502092,0.65623,2437.4,2437.3,3.2078]
[1751218502287,1.32173,2437.4,2437.3,3.2078]
[1751218502487,2.27961695,2437.4,2437.3,3.2078]
[1751218505998,0.65626,2437.3,2437.2,30.998]
[1751218508101,0.6655,2437.4,2437.1,2.44001754]
[1751218508403,0.65626,2437.3,2437.2,24.72]
[1751218508895,0.65626,2437.3,2437.2,25.37629]
[1751218509295,0.65626,2437.3,2437.2,24.72]
[1751218510399,0.65629,2437.2,2437.1,8.72701754]
[1751218510599,0.65628,2437.3,2437.1,34.10032754]
[1751218512407,0.65629,2437.2,2437.1,34.10032754]
[1751218513499,0.65629,2437.2,2437.1,33.44401754]
[1751218515601,0.65629,2437.2,2437.1,34.10032754]
[1751218516102,0.65629,2437.2,2437.1,33.44401754]
[1751218516704,0.65629,2437.2,2437.1,34.10032754]
[1751218516903,0.65627,2437.3,2437.1,34.10032754]
[1751218518003,0.65629,2437.2,2437.1,34.82392754]
[1751218519599,0.65629,2437.2,2437.1,34.16761754]
[1751218519807,0.65629,2437.2,2437.1,34.82392754]
[1751218520001,0.65628,2437.3,2437.1,34.82392754]
[1751218520307,0.6655,2437.4,2437.2,3.09630754]
[1751218520503,1.32173,2437.4,2437.3,24.711]
[1751218520699,2.28000879,2437.4,2437.3,24.711]
[1751218524207,0.65626,2437.3,2437.2,3.09630754]
[1751218524510,0.65626,2437.3,2437.2,27.80330754]
[1751218524808,0.65626,2437.3,2437.2,27.14701754]
[1751218528108,1.61564113,2437.3,2437.2,27.14701754]
[1751218528306,0.65626,2437.3,2437.2,27.14701754]
[1751218529704,1.61565877,2437.3,2437.2,27.14701754]
[1751218532612,1.61565877,2437.3,2437.2,27.80330754]
[1751218533712,1.61565877,2437.3,2437.2,27.14701754]
[1751218536516,1.61565877,2437.3,2437.2,24.707]
[1751218538016,0.65629,2437.2,2437.1,3.16361754]
[1751218538212,1.6158069,2437.2,2437.1,27.85961754]
[1751218539512,0.65629,2437.2,2437.1,27.85961754]
[1751218541911,0.65629,2437.2,2437.1,2.44001754]
[1751218542112,0.65631,2437.1,2437.0,5.64781754]
[1751218542313,3.61976074,2437.1,2437.0,3.2078]
[1751218545316,0.65637,2436.9,2436.8,27.9088]
[1751218545616,1.61562074,2436.9,2436.8,27.9088]
[1751218546416,0.65637,2436.9,2436.8,27.9088]
[1751218547020,0.65637,2436.9,2436.8,3.2078]